[Event "POL Youth-ch U20 Girls 2020"]
[Site "Pokrzywna"]
[Date "2020.12.02"]
[Round "5.1"]
[White "Rudzinska, Michalina"]
[Black "Goraj, Barbara"]
[Result "1-0"]
[ECO "B89"]
[WhiteElo "2189"]
[BlackElo "2078"]
[Annotator "NA"]
[PlyCount "71"]
[EventDate "2020.11.29"]
[EventType "swiss"]
[EventCountry "POL"]
[SourceTitle "playchess.com"]
[Source "ChessBase"]
[SourceQuality "1"]
[TimeControl "40/5400+30:1800+30"]

1. e4 {[%emt 0:00:00]} c5 {[%emt 0:00:00]} 2. Nf3 {[%emt 0:00:00]} Nc6 {[%emt 0:00:12]} 3. d4 {[%emt 0:00:00]} cxd4 {[%emt 0:00:11]} 4. Nxd4 {[%emt 0:00:00]} Nf6 {[%emt 0:00:15]} 5. Nc3 {[%emt 0:00:00]} d6 {[%emt 0:00:22]} 6. Bc4 {[%emt 0:00:10]} e6 {[%emt 0:00:23]} 7. Be3 {[%emt 0:00:10]} a6 {[%emt 0:00:47]} 8. Qe2 {[%emt 0:00:15]} Qc7 {[%emt 0:00:28]} 9. Bb3 {[%emt 0:00:16]} Na5 {[%emt 0:12:17]} 10. O-O {[%emt 0:12:27]} Be7 {[%emt 0:02:51]} 11. f4 {[%emt 0:01:22]} O-O {[%emt 0:04:23]} 12. f5 {[%emt 0:02:35]} Nxb3 {[%emt 0:03:33]} (12... e5 $5 13. Nf3 $8 Nxb3 14. cxb3 b5 $11) 13. axb3 {[%emt 0:00:15]} Bd7 {[%emt 0:03:26]} 14. Kh1 {[%emt 0:03:07]} b5 {[%emt 0:02:32]} 15. fxe6 {[%emt 0:16:34]} fxe6 {[%emt 0:00:51]} 16. b4 {[%emt 0:01:02]} d5 {[%emt 0:11:50]} ({Black should try} 16... Qc4 $15) 17. exd5 {[%emt 0:07:01]} exd5 {[%emt 0:03:59]} 18. Bf4 {[%emt 0:02:19]} Bd6 {[%emt 0:01:47]} 19. Ne6 {[%emt 0:02:57]} Qc6 {[%emt 0:05:57]} 20. Nxf8 {[%emt 0:00:18]} Rxf8 {[%emt 0:01:49]} 21. Bxd6 {[%emt 0:00:38]} Qxd6 {[%emt 0:00:09]} 22. Qd3 {[%emt 0:03:18]} Be6 {[%emt 0:03:02]} 23. Qd4 {[%emt 0:05:02]} Rc8 $18 {[%emt 0:02:14]} (23... Bf7 24. Qc5 Qxc5 25. bxc5 Rc8 26. Rxa6 d4) 24. Rxf6 {[%emt 0:12:49]} gxf6 {[%emt 0:00:32]} 25. Ne4 {[%emt 0:00:06]} Qc6 {[%emt 0:08:39]} 26. Nxf6+ {[%emt 0:00:26]} Kf7 {[%emt 0:00:42]} 27. Nxh7 {[%emt 0:04:12]} Kg6 {[%emt 0:09:43]} 28. Rf1 {[%emt 0:05:04]} Bf5 {[%emt 0:04:06]} 29. Rf3 {[%emt 0:05:08]} Kxh7 {[%emt 0:09:21]} 30. Rxf5 {[%emt 0:00:13]} Qh6 {[%emt 0:00:24]} 31. h3 {[%emt 0:04:36]} Rxc2 {[%emt 0:01:59]} 32. Qa7+ {[%emt 0:01:23]} Kh8 {[%emt 0:01:49]} 33. Qb8+ {[%emt 0:00:10]} Kh7 {[%emt 0:00:53]} 34. Rf7+ {[%emt 0:00:09]} Kg6 {[%emt 0:00:07]} 35. Qg8+ {[%emt 0:00:06]} Kh5 {[%emt 0:00:06]} 36. Qg4# {[%emt 0:00:04]} 1-0

[Event "POL Youth-ch U20 Girls 2020"]
[Site "Pokrzywna"]
[Date "2020.12.02"]
[Round "5.2"]
[White "Malicka, Maria"]
[Black "Antolak, Julia"]
[Result "0-1"]
[ECO "C71"]
[WhiteElo "2291"]
[BlackElo "2313"]
[Annotator "NA"]
[PlyCount "78"]
[EventDate "2020.11.29"]
[EventType "swiss"]
[EventCountry "POL"]
[SourceTitle "playchess.com"]
[Source "ChessBase"]
[SourceQuality "1"]
[TimeControl "40/5400+30:1800+30"]

1. e4 {[%emt 0:00:00]} e5 {[%emt 0:00:00]} 2. Nf3 {[%emt 0:00:00]} Nc6 {[%emt 0:00:00]} 3. Bb5 {[%emt 0:00:00]} a6 {[%emt 0:00:00]} 4. Ba4 {[%emt 0:00:00]} d6 {[%emt 0:00:03]} 5. d4 {[%emt 0:05:26]} b5 {[%emt 0:00:41]} 6. Bb3 {[%emt 0:00:07]} Nxd4 {[%emt 0:00:44]} 7. Nxd4 {[%emt 0:00:23]} exd4 {[%emt 0:00:05]} 8. Qh5 {[%emt 0:01:08]} Qe7 {[%emt 0:04:52]} 9. O-O {[%emt 0:08:23]} Nf6 {[%emt 0:07:05]} 10. Qf3 {[%emt 0:17:09]} Bb7 {[%emt 0:02:13]} ({Avoid the trap} 10... Nxe4 $2 {[#]} 11. Bxf7+ $1 {[%mdl 512]} Kd8 12. Bd5 $18 {[%mdl 64] Double Attack}) ({But not} 10... Qxe4 $2 11. Qxe4+ Nxe4 12. Bd5 $18 {[%mdl 64] Double Attack}) 11. c3 {[%emt 0:00:28]} Qxe4 {[%emt 0:10:52]} 12. Qxe4+ {[%emt 0:05:50]} Nxe4 {[%emt 0:00:22]} 13. cxd4 {[%emt 0:00:44]} d5 {[%emt 0:02:35]} 14. Nc3 {[%emt 0:09:30]} Nxc3 15. bxc3 {[%emt 0:00:06]} Bd6 {[%emt 0:03:21]} 16. a4 {[%emt 0:08:02]} Kd7 {[%emt 0:04:42]} 17. Bc2 {[%emt 0:03:18]} g6 {[%emt 0:03:18]} 18. Be3 {[%emt 0:00:34]} Bc6 {[%emt 0:01:50]} 19. Rfb1 {[%emt 0:01:44]} bxa4 {[%emt 0:03:35]} 20. Bxa4 {[%emt 0:00:11]} Bxa4 {[%emt 0:00:08]} 21. Rxa4 {[%emt 0:00:05]} Rhb8 {[%emt 0:00:21]} 22. Rba1 {[%emt 0:03:37]} Rb3 {[%emt 0:08:14]} 23. Kf1 {[%emt 0:08:34]} (23. Bd2 $17) 23... Rxc3 {[%emt 0:05:32]} 24. Rxa6 {[%emt 0:00:18]} Rxa6 {[%emt 0:00:23]} 25. Rxa6 {[%emt 0:00:03]} Bxh2 {[%emt 0:02:26]} 26. Rf6 {[%emt 0:02:59]} Ke8 {[%emt 0:01:00]} 27. Rf3 {[%emt 0:00:16]} Bd6 $19 {[%emt 0:02:48]} 28. g4 {[%emt 0:01:16]} c5 {[%emt 0:04:44]} 29. Rf6 {[%emt 0:01:02]} cxd4 {[%emt 0:14:32]} 30. Rxd6 {[%emt 0:01:09]} dxe3 {[%emt 0:00:07]} 31. Rxd5 {[%emt 0:00:06]} exf2 {[%emt 0:01:12]} 32. Kxf2 {[%emt 0:00:04]} h6 {[%emt 0:00:36]} 33. Rd6 {[%emt 0:00:30]} Ke7 {[%emt 0:00:19]} 34. Ra6 {[%emt 0:00:08]} Rd3 {[%emt 0:00:46]} 35. Rb6 {[%emt 0:00:07]} Rd6 {[%emt 0:00:29]} 36. Rb5 {[%emt 0:00:06]} Kf6 {[%emt 0:00:28]} 37. Kf3 {[%emt 0:00:26]} Rd3+ {[%emt 0:01:29]} 38. Kf2 {[%emt 0:02:47]} Kg7 {[%emt 0:00:33]} 39. Rb6 {[%emt 0:00:27]} Rd5 {[%emt 0:00:24]} 0-1

[Event "POL Youth-ch U20 Girls 2020"]
[Site "Pokrzywna"]
[Date "2020.12.02"]
[Round "5.3"]
[White "Adamczyk, Zuzanna"]
[Black "Kiolbasa, Oliwia"]
[Result "1/2-1/2"]
[ECO "D30"]
[WhiteElo "1924"]
[BlackElo "2260"]
[Annotator "NA"]
[PlyCount "92"]
[EventDate "2020.11.29"]
[EventType "swiss"]
[EventCountry "POL"]
[SourceTitle "playchess.com"]
[Source "ChessBase"]
[SourceQuality "1"]
[TimeControl "40/5400+30:1800+30"]

1. d4 {[%emt 0:00:00]} d5 {[%emt 0:00:00]} 2. c4 {[%emt 0:00:00]} e6 {[%emt 0:00:00]} 3. Nf3 {[%emt 0:00:21]} a6 {[%emt 0:00:01]} 4. cxd5 {[%emt 0:01:44]} exd5 {[%emt 0:00:12]} 5. Nc3 {[%emt 0:00:48]} Nf6 {[%emt 0:00:40]} 6. Bg5 {[%emt 0:01:31]} Be7 {[%emt 0:04:04]} 7. e3 {[%emt 0:00:58]} O-O {[%emt 0:03:27]} 8. Bd3 {[%emt 0:01:36]} Re8 {[%emt 0:09:15]} 9. Qc2 {[%emt 0:05:05]} h6 {[%emt 0:00:33]} 10. Bf4 {[%emt 0:01:00]} Nh5 {[%emt 0:04:16]} 11. Bg3 {[%emt 0:01:53]} Nxg3 {[%emt 0:01:10]} 12. hxg3 {[%emt 0:00:14]} Nc6 {[%emt 0:00:20]} 13. a3 {[%emt 0:01:08]} Be6 {[%emt 0:00:55]} 14. Ne2 {[%emt 0:03:21]} Bf8 {[%emt 0:09:45]} (14... Bd6 $11) 15. Nf4 {[%emt 0:11:03]} Na7 {[%emt 0:00:41]} ({Black should play} 15... Qf6 $14) 16. Ne5 {[%emt 0:03:18]} Bd6 {[%emt 0:05:49]} 17. Bh7+ {[%emt 0:21:04]} Kf8 {[%emt 0:00:15]} 18. Bf5 {[%emt 0:04:41]} Bxf5 {[%emt 0:04:40]} 19. Qxf5 {[%emt 0:01:07]} Bxe5 {[%emt 0:00:07]} 20. dxe5 {[%emt 0:02:03]} ({Stronger than} 20. Ng6+ Kg8 $11) 20... Kg8 {[%emt 0:01:34]} 21. O-O-O {[%emt 0:07:31]} c6 {[%emt 0:03:16]} 22. e6 {[%emt 0:02:03]} fxe6 $18 {[%emt 0:00:50]} (22... Qe7 $16 {is a better defense.}) 23. Nxe6 {[%emt 0:00:36]} Rxe6 {[%emt 0:17:10]} 24. Qxe6+ {[%emt 0:00:31]} Kh7 {[%emt 0:00:05]} 25. Rd4 {[%emt 0:09:00]} Qe8 {[%emt 0:11:19]} 26. Qf5+ {[%emt 0:00:50]} Qg6 {[%emt 0:00:13]} 27. Qd7 {[%emt 0:01:43]} Nb5 {[%emt 0:03:12]} 28. Rg4 {[%emt 0:03:36]} Qf6 {[%emt 0:00:12]} 29. Rf4 {[%emt 0:06:26]} Qe5 {[%emt 0:03:25]} 30. Qf7 {[%emt 0:02:47]} Kh8 {[%emt 0:01:45]} 31. Qg6 {[%emt 0:01:06]} Qd6 {[%emt 0:00:51]} 32. Qxd6 {[%emt 0:02:55]} Nxd6 {[%emt 0:00:03]} 33. g4 {[%emt 0:00:15]} Kg8 {[%emt 0:00:22]} 34. Rd1 {[%emt 0:01:47]} Re8 {[%emt 0:00:32]} 35. Kc2 {[%emt 0:01:34]} Re6 {[%emt 0:02:13]} 36. Rfd4 {[%emt 0:00:58]} Kf7 {[%emt 0:01:30]} 37. R4d2 {[%emt 0:00:33]} Kf6 {[%emt 0:01:34]} 38. Re2 {[%emt 0:00:40]} Nc4 {[%emt 0:00:25]} 39. Rde1 {[%emt 0:00:20]} Nd6 {[%emt 0:02:02]} 40. f3 {[%emt 0:00:00]} Kg5 {[%emt 0:00:00]} 41. b3 {[%emt 0:02:54]} Kf6 {[%emt 0:05:13]} 42. Kd3 {[%emt 0:03:47]} Kg5 {[%emt 0:06:30]} 43. Rh1 {[%emt 0:01:04]} Kf6 {[%emt 0:00:25]} 44. Rhe1 {[%emt 0:01:42]} Kg5 {[%emt 0:00:25]} 45. Rh1 {[%emt 0:04:44]} Kf6 {[%emt 0:02:23]} 46. Rhe1 {[%emt 0:03:05]} Ke5 1/2-1/2

[Event "POL Youth-ch U20 Girls 2020"]
[Site "Pokrzywna"]
[Date "2020.12.02"]
[Round "5.4"]
[White "Kroliczek, Gabriela"]
[Black "Wikar, Martyna"]
[Result "1-0"]
[ECO "B24"]
[WhiteElo "1911"]
[BlackElo "2171"]
[Annotator "NA"]
[PlyCount "49"]
[EventDate "2020.11.29"]
[EventType "swiss"]
[EventCountry "POL"]
[SourceTitle "playchess.com"]
[Source "ChessBase"]
[SourceQuality "1"]
[TimeControl "40/5400+30:1800+30"]

1. e4 {[%emt 0:00:00]} c5 {[%emt 0:00:00]} 2. Nc3 {[%emt 0:00:00]} Nc6 {[%emt 0:00:05]} 3. Bb5 {[%emt 0:00:00]} g6 {[%emt 0:01:53]} 4. Bxc6 {[%emt 0:00:00]} dxc6 {[%emt 0:00:04]} 5. d3 {[%emt 0:00:00]} Bg7 {[%emt 0:00:43]} 6. Be3 {[%emt 0:00:00]} Qd6 {[%emt 0:01:09]} 7. f4 {[%emt 0:00:50]} e5 {[%emt 0:03:25]} 8. Qd2 {[%emt 0:01:22]} Be6 {[%emt 0:04:24]} 9. Nf3 {[%emt 0:02:08]} O-O-O {[%emt 0:05:35]} 10. fxe5 {[%emt 0:06:59]} ({But not} 10. Nxe5 $6 b6 $16) 10... Bxe5 {[%emt 0:00:43]} 11. Nxe5 {[%emt 0:00:33]} Qxe5 {[%emt 0:00:07]} 12. Qf2 {[%emt 0:04:15]} b6 {[%emt 0:03:13]} (12... Nf6 $16) 13. a4 {[%emt 0:00:30]} f5 {[%emt 0:07:07]} 14. Bf4 {[%emt 0:04:24]} Qg7 {[%emt 0:04:00]} 15. a5 $18 {[%emt 0:03:56]} Nf6 {[%emt 0:05:31]} 16. O-O {[%emt 0:12:00]} Kb7 {[%emt 0:17:47]} 17. h3 {[%emt 0:16:51]} Rhf8 {[%emt 0:10:09]} 18. Na4 {[%emt 0:16:59]} Nd7 {[%emt 0:05:02]} 19. Bd6 {[%emt 0:04:41]} Rfe8 {[%emt 0:05:33]} 20. e5 {[%emt 0:04:43]} Nxe5 {[%emt 0:05:51]} 21. axb6 {[%emt 0:02:35]} axb6 {[%emt 0:00:40]} 22. Nxc5+ {[%emt 0:00:40]} bxc5 {[%emt 0:03:15]} 23. Qxc5 {[%emt 0:00:04]} Rxd6 {[%emt 0:09:16]} 24. Ra7+ {[%emt 0:00:34]} Kc8 {[%emt 0:00:19]} 25. Ra8+ {[%emt 0:00:22]} 1-0

[Event "POL Youth-ch U20 Girls 2020"]
[Site "Pokrzywna"]
[Date "2020.12.02"]
[Round "5.5"]
[White "Dylag, Emilia"]
[Black "Pawicka, Magdalena"]
[Result "1-0"]
[ECO "D35"]
[WhiteElo "2082"]
[BlackElo "1762"]
[Annotator "NA"]
[PlyCount "89"]
[EventDate "2020.11.29"]
[EventType "swiss"]
[EventCountry "POL"]
[SourceTitle "playchess.com"]
[Source "ChessBase"]
[SourceQuality "1"]
[TimeControl "40/5400+30:1800+30"]

1. d4 {[%emt 0:00:00]} d5 {[%emt 0:00:00]} 2. c4 {[%emt 0:00:00]} e6 {[%emt 0:00:00]} 3. Nc3 {[%emt 0:00:00]} Nf6 {[%emt 0:00:00]} 4. cxd5 {[%emt 0:00:08]} exd5 {[%emt 0:00:07]} 5. Bg5 {[%emt 0:00:06]} c6 {[%emt 0:00:34]} 6. e3 {[%emt 0:00:07]} Be7 {[%emt 0:00:19]} 7. Bd3 {[%emt 0:00:16]} O-O {[%emt 0:01:08]} 8. Qc2 {[%emt 0:00:33]} h6 {[%emt 0:01:35]} 9. Bf4 {[%emt 0:00:44]} Bd6 {[%emt 0:06:09]} 10. Bxd6 {[%emt 0:03:02]} Qxd6 {[%emt 0:00:10]} 11. Nf3 {[%emt 0:00:18]} Nbd7 {[%emt 0:04:11]} 12. O-O {[%emt 0:00:55]} Re8 {[%emt 0:05:46]} 13. a3 {[%emt 0:03:05]} b6 {[%emt 0:08:17]} 14. b4 {[%emt 0:05:06]} Bb7 {[%emt 0:01:21]} 15. Rab1 {[%emt 0:06:38]} Rac8 {[%emt 0:02:51]} 16. Rfc1 {[%emt 0:02:46]} Qb8 {[%emt 0:12:00]} 17. a4 {[%emt 0:06:14]} Qa8 {[%emt 0:04:03]} 18. a5 {[%emt 0:04:17]} bxa5 {[%emt 0:03:12]} 19. bxa5 {[%emt 0:00:11]} c5 {[%emt 0:00:57]} 20. a6 {[%emt 0:02:20]} Bc6 {[%emt 0:00:13]} 21. Bf5 {[%emt 0:05:46]} Rc7 {[%emt 0:08:29]} 22. Qa2 {[%emt 0:12:28]} c4 {[%emt 0:03:46]} 23. Qa5 {[%emt 0:03:52]} Qd8 $14 {[%emt 0:09:37]} 24. Rb2 {[%emt 0:03:01]} Rc8 {[%emt 0:01:18]} 25. Qa2 {[%emt 0:09:56]} Rb8 {[%emt 0:03:56]} 26. Rxb8 {[%emt 0:02:45]} Qxb8 {[%emt 0:00:33]} 27. Nd2 {[%emt 0:13:09]} Nb6 {[%emt 0:03:44]} 28. Rb1 {[%emt 0:01:22]} Qd6 {[%emt 0:04:55]} 29. Nf3 {[%emt 0:02:38]} Nfd7 {[%emt 0:01:57]} 30. h3 {[%emt 0:01:22]} g6 {[%emt 0:02:38]} 31. Bc2 {[%emt 0:03:29]} Kg7 {[%emt 0:02:26]} 32. Qa5 {[%emt 0:03:28]} Re7 {[%emt 0:05:29]} 33. Re1 {[%emt 0:02:03]} f5 {[%emt 0:01:30]} 34. h4 {[%emt 0:01:17]} h5 {[%emt 0:01:13]} 35. Ne2 {[%emt 0:00:33]} Ba8 {[%emt 0:01:11]} 36. Nf4 {[%emt 0:00:57]} Nb8 {[%emt 0:00:24]} 37. Qc3 {[%emt 0:01:50]} N6d7 {[%emt 0:00:27]} 38. Ra1 {[%emt 0:00:35]} Kh7 {[%emt 0:00:41]} 39. Qa5 {[%emt 0:01:34]} Re8 {[%emt 0:01:37]} 40. Ba4 {[%emt 0:00:00]} Qb6 {[%emt 0:00:00]} 41. Qxb6 {[%emt 0:01:55]} axb6 {[%emt 0:00:50]} 42. a7 {[%emt 0:00:45]} Nc6 {[%emt 0:00:11]} 43. Nxd5 {[%emt 0:00:40]} Rc8 {[%emt 0:01:05]} 44. Ng5+ {[%emt 0:01:13]} Kg7 {[%emt 0:00:15]} 45. Ne6+ {[%emt 0:00:25]} 1-0

[Event "POL Youth-ch U20 Girls 2020"]
[Site "Pokrzywna"]
[Date "2020.12.02"]
[Round "5.6"]
[White "Parol, Pola"]
[Black "Budkiewicz, Magdalena"]
[Result "1-0"]
[ECO "B84"]
[WhiteElo "2069"]
[BlackElo "1672"]
[Annotator "NA"]
[PlyCount "81"]
[EventDate "2020.11.29"]
[EventType "swiss"]
[EventCountry "POL"]
[SourceTitle "playchess.com"]
[Source "ChessBase"]
[SourceQuality "1"]
[TimeControl "40/5400+30:1800+30"]

1. e4 {[%emt 0:00:00]} c5 {[%emt 0:00:00]} 2. Nf3 {[%emt 0:00:00]} d6 {[%emt 0:00:09]} 3. d4 {[%emt 0:00:00]} cxd4 {[%emt 0:00:12]} 4. Nxd4 {[%emt 0:00:00]} Nf6 {[%emt 0:00:19]} 5. Nc3 {[%emt 0:00:06]} a6 {[%emt 0:00:20]} 6. Be2 {[%emt 0:00:24]} e6 {[%emt 0:00:43]} 7. Be3 {[%emt 0:01:19]} Be7 {[%emt 0:01:20]} 8. O-O {[%emt 0:00:21]} O-O {[%emt 0:01:40]} 9. f4 {[%emt 0:00:59]} Nbd7 {[%emt 0:01:28]} 10. Bf3 {[%emt 0:01:37]} Qc7 {[%emt 0:01:43]} 11. Qe1 {[%emt 0:06:05]} (11. g4 $14) 11... Rb8 {[%emt 0:02:21]} 12. g4 {[%emt 0:07:38]} Nb6 {[%emt 0:05:34]} 13. g5 {[%emt 0:05:33]} Nfd7 {[%emt 0:00:52]} 14. Rd1 {[%emt 0:12:50]} Nc4 {[%emt 0:01:41] [#]} 15. Bc1 $1 {[%emt 0:00:33]} b5 {[%emt 0:04:11]} 16. Kh1 {[%emt 0:07:39]} b4 {[%emt 0:12:14]} 17. Nce2 {[%emt 0:01:35]} d5 {[%emt 0:12:46]} 18. exd5 {[%emt 0:07:25]} exd5 {[%emt 0:00:10]} 19. Nf5 {[%emt 0:03:28]} Ndb6 $16 {[%emt 0:05:25]} (19... Re8 $142) 20. Ned4 {[%emt 0:05:21]} Bc5 {[%emt 0:02:42]} 21. b3 {[%emt 0:07:49]} Nd6 {[%emt 0:03:14]} 22. Ne7+ {[%emt 0:11:20]} Kh8 {[%emt 0:00:18]} 23. Nxc8 {[%emt 0:02:22]} Rbxc8 {[%emt 0:00:30]} 24. Bb2 {[%emt 0:00:32]} Rfe8 {[%emt 0:04:53]} 25. Qd2 {[%emt 0:02:52]} Rcd8 {[%emt 0:04:00]} 26. Qd3 {[%emt 0:01:09]} Ne4 {[%emt 0:02:06]} 27. Nf5 {[%emt 0:03:23]} Nf2+ {[%emt 0:09:01]} 28. Rxf2 {[%emt 0:00:05]} Bxf2 {[%emt 0:00:06]} 29. Nxg7 {[%emt 0:01:35]} Kg8 {[%emt 0:00:46]} 30. Nxe8 {[%emt 0:01:57]} Rxe8 {[%emt 0:00:10]} 31. Qf5 {[%emt 0:01:35]} Re6 {[%emt 0:08:13]} 32. Be5 {[%emt 0:01:38]} Qc6 {[%emt 0:01:19]} 33. Qd3 {[%emt 0:00:42]} Re8 {[%emt 0:01:48]} 34. Kg2 {[%emt 0:01:03]} Bh4 {[%emt 0:05:19]} 35. Rd2 {[%emt 0:00:57]} Rd8 {[%emt 0:00:53]} 36. Bb2 {[%emt 0:00:41]} Qc5 {[%emt 0:05:16]} 37. Qd4 {[%emt 0:02:52]} Qxd4 {[%emt 0:00:57]} 38. Bxd4 {[%emt 0:00:02]} Nc8 {[%emt 0:00:26]} 39. Re2 {[%emt 0:00:51]} h6 {[%emt 0:01:41]} 40. Bf6 {[%emt 0:00:00]} Rf8 {[%emt 0:00:00]} 41. Kh3 {[%emt 0:00:26]} 1-0

[Event "POL Youth-ch U20 Girls 2020"]
[Site "Pokrzywna"]
[Date "2020.12.02"]
[Round "5.7"]
[White "Kulpa, Zuzanna"]
[Black "Szczotka, Klara"]
[Result "1-0"]
[ECO "D38"]
[WhiteElo "1806"]
[BlackElo "1928"]
[Annotator "NA"]
[PlyCount "93"]
[EventDate "2020.11.29"]
[EventType "swiss"]
[EventCountry "POL"]
[SourceTitle "playchess.com"]
[Source "ChessBase"]
[SourceQuality "1"]
[TimeControl "40/5400+30:1800+30"]

1. d4 {[%emt 0:00:00]} Nf6 {[%emt 0:00:00]} 2. c4 {[%emt 0:00:00]} e6 {[%emt 0:00:00]} 3. Nf3 {[%emt 0:00:00]} d5 {[%emt 0:00:45]} 4. Nc3 {[%emt 0:00:00]} Bb4 {[%emt 0:01:29]} 5. Qb3 {[%emt 0:00:17]} Bxc3+ {[%emt 0:00:39]} 6. bxc3 {[%emt 0:00:34]} O-O {[%emt 0:01:12]} 7. Bg5 {[%emt 0:01:46]} c6 {[%emt 0:10:01]} 8. e3 {[%emt 0:01:31]} Nbd7 {[%emt 0:00:47]} 9. Bd3 {[%emt 0:00:25]} Qb6 {[%emt 0:02:48]} 10. Qc2 {[%emt 0:01:43]} dxc4 {[%emt 0:05:48]} 11. Bxc4 {[%emt 0:00:18]} Qa5 {[%emt 0:00:15]} 12. O-O {[%emt 0:01:47]} h6 {[%emt 0:01:03]} 13. Bh4 {[%emt 0:01:01]} Nd5 {[%emt 0:01:10] [#]} ({Black should play} 13... b6 $14) 14. Rfc1 $1 {[%emt 0:03:30]} b5 {[%emt 0:10:31]} 15. Bf1 {[%emt 0:03:59]} Bb7 {[%emt 0:02:43] [#]} (15... Ba6 $16) 16. a4 $1 {[%emt 0:03:35]} bxa4 {[%emt 0:09:21]} 17. Rxa4 {[%emt 0:01:09]} Qc7 {[%emt 0:00:48]} 18. Bg3 {[%emt 0:03:00]} Qc8 {[%emt 0:00:31]} 19. c4 {[%emt 0:00:54]} N5b6 {[%emt 0:00:18]} 20. Ra5 {[%emt 0:00:25]} Rd8 {[%emt 0:01:07]} 21. c5 {[%emt 0:02:01]} Nd5 {[%emt 0:00:47]} 22. Rca1 {[%emt 0:02:31]} a6 {[%emt 0:00:41]} 23. Nd2 {[%emt 0:00:49]} Nc7 {[%emt 0:02:35]} 24. Ne4 {[%emt 0:06:34]} Nb5 {[%emt 0:02:24]} 25. Rc1 {[%emt 0:06:06]} Nb8 {[%emt 0:01:55]} 26. Qd1 {[%emt 0:07:03]} Rd7 {[%emt 0:04:42]} 27. Nd2 {[%emt 0:03:10]} Rd5 {[%emt 0:11:59]} 28. Nc4 {[%emt 0:03:04]} Nd7 {[%emt 0:00:34]} 29. Nd6 {[%emt 0:01:18]} Nxd6 {[%emt 0:03:46]} 30. Bxd6 $18 {[%emt 0:00:01]} Qd8 {[%emt 0:03:33]} 31. Ra2 {[%emt 0:00:18]} Rg5 {[%emt 0:01:08]} 32. h4 {[%emt 0:03:48]} Rg6 {[%emt 0:00:38]} 33. Bd3 {[%emt 0:00:46]} f5 {[%emt 0:00:10]} 34. Qb3 {[%emt 0:01:37]} Bc8 {[%emt 0:04:03]} 35. Bxf5 {[%emt 0:00:33]} Rf6 {[%emt 0:00:05]} 36. Bxe6+ {[%emt 0:00:15]} Kh8 {[%emt 0:00:04]} 37. Bc4 {[%emt 0:01:18]} Rg6 {[%emt 0:00:30]} 38. Qd3 {[%emt 0:02:50]} Rg4 {[%emt 0:03:47]} 39. Bg3 {[%emt 0:00:57]} Qf6 {[%emt 0:01:43]} 40. Bxa6 {[%emt 0:00:00]} Bxa6 {[%emt 0:00:00]} 41. Rxa6 {[%emt 0:02:57]} Rf8 {[%emt 0:00:54]} 42. Qe2 {[%emt 0:01:38]} Rg6 {[%emt 0:00:58]} 43. Rca1 {[%emt 0:02:22]} Kh7 {[%emt 0:03:29]} 44. Ra8 {[%emt 0:00:34]} Rf7 {[%emt 0:00:07]} 45. h5 {[%emt 0:00:28]} Rg5 {[%emt 0:00:09]} 46. Qc2+ {[%emt 0:00:24]} g6 {[%emt 0:00:09]} 47. Bh4 {[%emt 0:00:17]} 1-0